[Event "FIDE WCCC U10 2018"]
[Site "Santiago de Compostela"]
[Date "2018.11.09"]
[Round "5"]
[White "Materia, Marco"]
[Black "Vetokhin, Savva"]
[Result "1/2-1/2"]
[ECO "C01"]
[WhiteElo "2035"]
[BlackElo "1874"]
[Annotator "NA RC"]
[PlyCount "94"]
[EventDate "2018.11.04"]
[EventType "swiss"]
[EventCountry "ESP"]
[SourceTitle "playchess.com"]
[Source "ChessBase"]
[SourceQuality "1"]
[TimeControl "40/5400+30:1800+30"]

{[%evp 15,92,-12,22,13,0,0,20,0,64,78,32767,48,32767,84,95,93,32767,51,56,54,41,34,146,96,32767,25,33,24,32767,15,32767,91,138,32767,32767,42,82,32767,107,33,32767,32767,32767,0,0,-14,32767,-10,32767,32767,32767,32767,32767,32767,32767,-10,32767,32767,32767,-13,-31,-93,0,0,-6,-92,32767,0,0,0,32767,32767,0,32767,0,0,32767,0,0]} 1. e4 {[%emt 0:00:00]} e6 {[%emt 0:00:00]} 2. d4 {[%emt 0:00:00]} d5 {[%emt 0:00:00]} 3. exd5 {[%emt 0:00:00]} exd5 {[%emt 0:00:00]} 4. Nf3 {[%emt 0:00:00]} Bd6 {[%emt 0:00:00]} 5. c4 {[%emt 0:00:01]} Nf6 {[%emt 0:00:21]} 6. Nc3 {[%emt 0:00:11]} O-O {[%emt 0:00:13]} 7. c5 {[%emt 0:02:35] C01: French: Exchange Variation} (7. cxd5 Nbd7 8. Bg5 h6 9. Bh4 Nb6 10. Ne5 Be7 11. Bd3 Nfxd5 12. Bxe7 Nxe7 13. O-O Bf5 14. Bxf5 Nxf5 15. Qf3 Nd6 {½-½ (43) Nisipeanu,L (2682)-Ragger,M (2666) Graz 2018}) 7... Be7 {[%emt 0:00:11]} 8. Bf4 {[%emt 0:14:02]} c6 {[%emt 0:28:00]} 9. Bd3 {[%emt 0:07:05]} b6 $146 {[%emt 0:02:27]} ({Predecessor:} 9... Re8 10. O-O Nbd7 11. b4 Nf8 12. h3 g6 13. Bh2 Nh5 14. Re1 {1-0 (37) Pfreundt,J (2273)-Schueler,H (2119) Bargteheide 2015}) 10. b4 {[%emt 0:05:06]} a5 $1 {[%emt 0:03:04]} 11. a3 {[%emt 0:01:41]} Na6 {[%emt 0:08:35]} (11... Bg4 $11) 12. Ne5 {[%emt 0:13:21]} Bd7 {[%emt 0:12:21]} 13. Rb1 {[%emt 0:11:46]} (13. Na4 $16 bxc5 14. bxc5) 13... b5 {[%emt 0:01:29]} 14. O-O {[%emt 0:00:50]} axb4 {[%emt 0:01:53]} 15. axb4 {[%emt 0:00:06]} Nc7 {[%emt 0:00:20]} 16. Ra1 {[%emt 0:07:00]} Rxa1 {[%emt 0:05:28]} 17. Qxa1 {[%emt 0:00:12]} Nh5 {[%emt 0:13:01]} 18. Be3 {[%emt 0:04:57]} Be8 {[%emt 0:05:17]} ({Better is} 18... f6 $14 19. Nxd7 Qxd7) 19. Qb1 {[%emt 0:01:53]} g6 20. Qb2 {[%emt 0:05:56]} (20. Bh6 $16) 20... f6 {[%emt 0:02:10]} 21. Nf3 {[%emt 0:00:56]} Ne6 {[%emt 0:01:02]} 22. Ne2 {[%emt 0:01:06]} g5 {[%emt 0:03:41]} 23. Qc2 {[%emt 0:01:58]} Rf7 {[%emt 0:00:38]} 24. Ng3 Nxg3 25. hxg3 Qa8 26. Bf5 Nf8 27. Qb2 ({Better is} 27. Nh2 $16) 27... Bd8 28. Ra1 Ra7 29. Rxa7 Qxa7 30. Kf1 {[%emt 0:06:05]} Ng6 31. Bc1 Kf8 32. Qa3 Qxa3 33. Bxa3 Ke7 34. Bc1 h6 35. Ke2 Bc7 36. Kd3 Nf8 37. g4 Ne6 38. Kc3 {[#]} (38. Ng1 $11) 38... h5 ({Lieber} 38... Ng7 $1 $17 39. Bc8 Kd8) 39. gxh5 Bxh5 40. g4 (40. Ne1 $11 {remains equal.}) 40... Be8 41. Ne1 Nf4 {[%emt 0:15:08]} 42. Bxf4 {[%emt 0:07:57]} Bxf4 {[%emt 0:00:18]} 43. Ng2 {[%emt 0:00:21]} Bc7 {[%emt 0:00:30]} 44. Kd3 {[%emt 0:00:25]} Kf7 {[%emt 0:01:45]} 45. Ke3 {[%emt 0:00:30]} Kg7 {[%emt 0:00:10]} 46. f4 {[%emt 0:01:07]} Kh6 $11 {[%emt 0:01:45]} 47. Kf3 {[%emt 0:00:20]} Bb8 {[%emt 0:00:12]} 1/2-1/2

[Event "FIDE WCCC U10 2018"]
[Site "Santiago de Compostela"]
[Date "2018.11.09"]
[Round "5"]
[White "Mardov, Dimitar"]
[Black "Sosa Costa, Leonardo"]
[Result "1-0"]
[ECO "B70"]
[WhiteElo "1985"]
[BlackElo "1945"]
[Annotator "NA RC"]
[PlyCount "63"]
[EventDate "2018.11.04"]
[EventType "swiss"]
[EventCountry "ESP"]
[SourceTitle "playchess.com"]
[Source "ChessBase"]
[SourceQuality "1"]
[TimeControl "40/5400+30:1800+30"]

{[%evp 18,63,6,32767,18,-1,0,7,24,10,22,40,41,9,3,0,13,-12,13,32767,15,32767,32767,32767,23,25,71,12,32767,5,32767,32767,191,32767,32767,32767,233,32767,216,32767,32767,32767,487,504,32767,1845,29997,29998]} 1. e4 {[%emt 0:00:00]} c5 {[%emt 0:00:00]} 2. Nf3 {[%emt 0:00:00]} d6 {[%emt 0:00:00]} 3. d4 {[%emt 0:00:00]} cxd4 {[%emt 0:00:00]} 4. Nxd4 {[%emt 0:00:00]} Nf6 {[%emt 0:00:00]} 5. Nc3 {[%emt 0:00:00]} g6 {[%emt 0:00:27]} 6. Be2 Bg7 {[%emt 0:00:24]} 7. O-O {[%emt 0:00:17]} O-O {[%emt 0:00:20]} 8. Re1 {[%emt 0:00:18]} Nc6 {[%emt 0:00:48]} 9. Nb3 {[%emt 0:00:06]} Be6 {[%emt 0:08:52]} 10. Bg5 {[%emt 0:02:36]} Rc8 {[%emt 0:02:41]} 11. Bf1 {[%emt 0:04:11] B70: Sicilian Dragon: 6 g3 and 6 Be2 (without a later Be3)} Re8 {[%emt 0:10:52]} (11... h6 12. Bf4 d5 13. exd5 Nxd5 14. Nxd5 Bxd5 15. c3 e5 16. Be3 b6 17. Qc1 Qh4 18. f3 Rfd8 {0-1 (52) Andriasian,Z (2585)-Nakamura,H (2781) chess.com INT 2018}) 12. Nd5 {[%emt 0:06:35]} Bxd5 {[%emt 0:07:43] LiveBook: 7 Games} 13. exd5 {[%emt 0:00:58]} Na5 {[%emt 0:03:12]} 14. c3 {[%emt 0:05:34]} a6 {[%emt 0:02:29]} 15. Qf3 $146 {[%emt 0:05:41]} ({Predecessor:} 15. Nxa5 Qxa5 16. c4 e5 17. a3 h6 18. Be3 {1-0 (34) Zaragatski,I (2436)-Praet,M (2230) Belgium 2006}) 15... Nc4 {[%emt 0:08:22]} 16. Bxc4 {[%emt 0:01:49]} Rxc4 {[%emt 0:00:05]} 17. Re2 {[%emt 0:03:25]} Ra4 {[%emt 0:03:20]} 18. Nd2 {[%emt 0:14:44]} Qa5 {[%emt 0:12:53]} 19. Bxf6 {[%emt 0:03:47]} Bxf6 {[%emt 0:00:11]} 20. a3 {[%emt 0:02:07]} Qc7 {[%emt 0:04:04]} 21. Rae1 {[%emt 0:02:48]} Ra5 {[%emt 0:01:50]} 22. Qd3 {[%emt 0:04:56]} Bg7 {[%emt 0:03:10] [#]} 23. g3 {[%emt 0:02:00]} (23. c4 $1 $16) 23... Qd7 {[%emt 0:02:26]} 24. Ne4 {[%emt 0:03:53]} h6 $2 {[%emt 0:03:20]} (24... e5 $11 {and Black stays safe.}) 25. c4 {[%emt 0:04:35]} b5 {[%emt 0:07:05]} 26. c5 {[%emt 0:01:50]} Rc8 {[%emt 0:03:32]} 27. b4 {[%emt 0:04:48]} Ra4 {[%emt 0:00:14]} 28. Qb3 {[%emt 0:01:20]} a5 {[%emt 0:01:19]} 29. Nc3 {[%emt 0:03:27]} Bxc3 {[%emt 0:03:00]} 30. Rxe7 {[%emt 0:01:49]} Qf5 {[%emt 0:02:15]} 31. Qxc3 {[%emt 0:01:08]} Qxd5 {[%emt 0:00:53]} 32. Re8+ 1-0

[Event "FIDE WCCC U10 2018"]
[Site "Santiago de Compostela"]
[Date "2018.11.09"]
[Round "5"]
[White "Volkov, Maksim"]
[Black "Atanasov, Anthony"]
[Result "1/2-1/2"]
[ECO "A05"]
[WhiteElo "1971"]
[BlackElo "1916"]
[Annotator "NA RC"]
[PlyCount "144"]
[EventDate "2018.11.04"]
[EventType "swiss"]
[EventCountry "ESP"]
[SourceTitle "playchess.com"]
[Source "ChessBase"]
[SourceQuality "1"]
[TimeControl "40/5400+30:1800+30"]

{[%evp 14,144,29,11,35,18,43,0,41,33,41,18,43,32767,32767,32767,32767,32767,16,32767,0,0,32767,32767,0,32767,38,8,10,11,10,11,32767,32767,1,-32,-20,-22,-18,-47,0,4,0,32767,32767,32767,32767,-4,32767,-3,0,15,0,0,11,0,45,32767,32767,46,32767,32767,32767,32767,32767,32767,32767,32767,32767,42,45,42,81,32767,32767,89,95,98,112,57,63,37,91,37,72,39,94,79,94,57,62,62,93,55,53,32767,32767,32767,42,37,64,32767,32767,31,51,0,34,40,27,27,28,40,34,32,41,22,27,32,34,34,32,26,34,23,33,32767,30,21,32,29,29,26,21]} 1. Nf3 {[%emt 0:00:00]} Nf6 {[%emt 0:00:00]} 2. c4 {[%emt 0:00:00]} g6 {[%emt 0:00:00]} 3. b3 {[%emt 0:00:27]} Bg7 {[%emt 0:00:04]} 4. Bb2 {[%emt 0:00:07]} O-O {[%emt 0:00:56]} 5. g3 {[%emt 0:00:24]} c6 {[%emt 0:02:17]} 6. Bg2 {[%emt 0:00:55]} d5 {[%emt 0:01:21]} 7. O-O {[%emt 0:01:08]} Nbd7 {[%emt 0:07:59]} 8. d4 {[%emt 0:05:43]} Ne4 {[%emt 0:02:06] LiveBook: 129 Partien} 9. Na3 {[%emt 0:02:10] D78: Fianchetto Grünfeld: 6 0-0 c6} (9. e3 Ndf6 10. Ne5 Be6 11. Qe2 a5 12. Na3 a4 13. f3 Nd6 14. c5 Nf5 15. b4 Bc8 16. Rad1 e6 17. e4 {1-0 (98) Gelfand,B (2695)-Korobov,A (2678) Poikovsky 2018}) 9... Nd6 $146 {[%emt 0:10:44]} ({Predecessor:} 9... Re8 10. Rc1 a6 11. cxd5 cxd5 12. Nc2 Ndf6 13. Ne5 Be6 14. Nb4 Rc8 15. f3 Nd6 16. Rxc8 Qxc8 {1-0 (31) Medina Masdeu,R (2208)-Bigas Hospital,J (2032) Santa Eugenia 2014}) 10. e3 {[%emt 0:10:44]} a5 {[%emt 0:03:25]} 11. Qe2 {[%emt 0:03:57]} e6 {[%emt 0:14:44]} 12. Rfd1 {[%emt 0:08:36]} Rb8 {[%emt 0:08:54]} 13. Rac1 {[%emt 0:08:37]} b5 {[%emt 0:06:08]} 14. cxd5 {[%emt 0:00:50]} cxd5 {[%emt 0:00:17]} 15. Ne5 {[%emt 0:00:44]} Bb7 $1 {[%emt 0:18:03]} 16. Nc6 {[%emt 0:06:27]} Bxc6 $1 {[%emt 0:00:42]} 17. Rxc6 {[%emt 0:00:15]} Rb6 {[%emt 0:03:42]} 18. Rdc1 {[%emt 0:01:19]} b4 {[%emt 0:00:57]} 19. Nb1 {[%emt 0:01:22]} Nb5 {[%emt 0:04:07]} 20. Rxb6 {[%emt 0:01:13]} Qxb6 {[%emt 0:00:13]} 21. Bf1 {[%emt 0:00:14]} Nd6 {[%emt 0:01:03]} 22. Nd2 {[%emt 0:04:05]} Ra8 {[%emt 0:01:01]} 23. Nf3 {[%emt 0:01:06]} a4 {[%emt 0:01:03]} 24. Ne5 {[%emt 0:00:23]} Nxe5 {[%emt 0:01:39]} 25. dxe5 {[%emt 0:00:05]} Ne4 {[%emt 0:00:40]} 26. bxa4 {[%emt 0:04:44]} Nc3 {[%emt 0:01:21]} (26... Rxa4 $17 27. Rc8+ Bf8) 27. Bxc3 {[%emt 0:02:18]} bxc3 {[%emt 0:00:04]} 28. Rxc3 {[%emt 0:00:19]} Bxe5 {[%emt 0:00:10]} 29. Rb3 {[%emt 0:04:16]} Qa5 {[%emt 0:00:46]} 30. Qf3 {[%emt 0:04:10]} Qxa4 {[%emt 0:01:45]} 31. Rb7 {[%emt 0:00:26]} Qe8 {[%emt 0:00:52]} 32. Bb5 {[%emt 0:00:33]} Qf8 {[%emt 0:00:19]} 33. a4 {[%emt 0:00:35]} Rb8 {[%emt 0:01:01]} 34. Rd7 {[%emt 0:00:13]} Rd8 {[%emt 0:00:54]} 35. Qxf7+ Qxf7 {[%emt 0:00:32]} 36. Rxd8+ {[%emt 0:00:25]} Kg7 {[%emt 0:00:19]} 37. Rd7 {[%emt 0:00:06]} Bc7 {[%emt 0:06:35]} 38. Kf1 {[%emt 0:00:18]} e5 {[%emt 0:01:17]} 39. Ke2 {[%emt 0:00:34]} Qxd7 {[%emt 0:00:51]} 40. Bxd7 {[%emt 0:00:00]} Kf6 {[%emt 0:00:00]} 41. Kd3 {[%emt 0:03:17]} Ke7 {[%emt 0:01:17]} 42. Bc8 {[%emt 0:01:14]} Kd6 {[%emt 0:01:42]} 43. e4 {[%emt 0:00:39]} Bb6 {[%emt 0:07:07]} 44. f3 {[%emt 0:03:16]} Bg1 {[%emt 0:05:13] [#]} 45. h3 $1 {[%emt 0:00:13]} Bh2 {[%emt 0:06:31]} 46. g4 {[%emt 0:01:11]} d4 {[%emt 0:05:33]} 47. a5 {[%emt 0:03:22]} Kc7 {[%emt 0:00:03] [#]} 48. Be6 {[%emt 0:00:37]} (48. Ba6 $1 $16) 48... Bf4 {[%emt 0:04:49]} 49. Bg8 {[%emt 0:02:10]} h6 {[%emt 0:01:25]} 50. Bf7 {[%emt 0:00:07]} g5 {[%emt 0:00:34]} 51. Bc4 {[%emt 0:00:24]} Kc6 {[%emt 0:01:04]} 52. a6 {[%emt 0:00:30]} Bc1 {[%emt 0:00:48]} 53. Kc2 {[%emt 0:03:41]} Ba3 {[%emt 0:00:44]} 54. Kb3 {[%emt 0:02:07]} Bc5 {[%emt 0:00:09]} 55. Bd3 {[%emt 0:00:13]} Ba7 {[%emt 0:00:37]} 56. Kc4 {[%emt 0:00:10]} Kd6 {[%emt 0:00:42]} 57. Kb5 {[%emt 0:06:08]} Kd7 {[%emt 0:00:27]} 58. Kb4 {[%emt 0:01:50]} Kc6 {[%emt 0:00:30]} 59. Kc4 {[%emt 0:01:19]} Kd6 {[%emt 0:00:16]} 60. Bf1 {[%emt 0:00:05]} Ke6 {[%emt 0:00:39]} 61. Kb5 {[%emt 0:00:22]} Kd6 {[%emt 0:00:26]} 62. Bc4 {[%emt 0:00:05]} Kd7 {[%emt 0:00:37]} 63. Be2 {[%emt 0:04:36]} Kd6 {[%emt 0:00:13]} 64. Kc4 {[%emt 0:00:08]} Bb6 {[%emt 0:01:00]} 65. Bd1 {[%emt 0:00:41]} Ba7 {[%emt 0:00:30]} 66. Ba4 {[%emt 0:01:37]} Bb6 {[%emt 0:00:17]} 67. Be8 {[%emt 0:00:12]} Ba7 {[%emt 0:00:22]} 68. Kb5 {[%emt 0:00:11]} Ke7 {[%emt 0:00:29]} 69. Bc6 {[%emt 0:00:16]} Kd6 {[%emt 0:00:23]} 70. Bd5 {[%emt 0:00:07]} Bc5 {[%emt 0:01:06]} 71. Bf7 {[%emt 0:05:06]} Ba7 {[%emt 0:00:20]} 72. Bb3 {[%emt 0:00:09]} Kd7 $11 {[%emt 0:00:36]} 1/2-1/2

[Event "FIDE WCCC U10 2018"]
[Site "Santiago de Compostela"]
[Date "2018.11.09"]
[Round "5"]
[White "Zhao, Erick"]
[Black "Li Yihao"]
[Result "0-1"]
[ECO "B21"]
[WhiteElo "1957"]
[BlackElo "1601"]
[Annotator "NA RC"]
[PlyCount "76"]
[EventDate "2018.11.04"]
[EventType "swiss"]
[EventCountry "ESP"]
[SourceTitle "playchess.com"]
[Source "ChessBase"]
[SourceQuality "1"]
[TimeControl "40/5400+30:1800+30"]

{[%evp 11,66,-27,32767,32767,-35,0,-6,-5,-16,-66,0,0,0,-39,-17,-26,-18,0,0,0,0,-20,0,-52,-22,-28,-23,-29,-22,-48,-62,-42,-35,-42,-13,-33,32767,-26,-14,32767,-19,-29,-50,-41,32767,32767,32767,32767,32767,-400,-456,-462,-462,-420,-596,-608,-739]} 1. e4 {[%emt 0:00:00]} c5 {[%emt 0:00:00]} 2. d4 {[%emt 0:00:11]} cxd4 {[%emt 0:00:00]} 3. c3 {[%emt 0:00:30]} dxc3 {[%emt 0:00:00]} 4. Nxc3 {[%emt 0:05:50]} Nc6 {[%emt 0:01:40]} 5. Nf3 {[%emt 0:00:36]} d6 {[%emt 0:00:13]} 6. Bc4 {[%emt 0:01:05]} a6 {[%emt 0:00:37]} 7. O-O {[%emt 0:01:09]} Nf6 {[%emt 0:00:19]} 8. Bf4 {[%emt 0:07:05] B21: Sicilian: 2 f4 and Morra Gambit} Bg4 {[%emt 0:00:24]} 9. h3 {[%emt 0:05:12] LiveBook: 21 Games} Bh5 {[%emt 0:00:09]} (9... Bxf3 10. Qxf3 e6 11. Rfd1 Qb6 12. Be2 Be7 13. Qg3 O-O 14. Bxd6 Bxd6 15. Rxd6 Rfd8 {½-½ (77) Galperin,P (2374)-Vovk,Y (2564) Lvov 2018}) 10. Rc1 {[%emt 0:07:21]} (10. g4 $11 Bg6 11. Qe2) 10... e5 $146 {[%emt 0:04:23]} ({Predecessor:} 10... Rc8 11. Be2 e6 12. Qb3 Nd7 13. Rfd1 Bxf3 14. Bxf3 Qb6 15. Qc2 Be7 {1-0 (34) Kawagoe,T (1812)-Champion,C (1813) LSS email 2011}) 11. Be3 {[%emt 0:01:33]} Be7 {[%emt 0:00:42]} 12. Qe2 {[%emt 0:05:37]} O-O {[%emt 0:02:33]} 13. Rfd1 {[%emt 0:01:44]} Rc8 {[%emt 0:02:18]} 14. g4 {[%emt 0:05:32]} Bg6 {[%emt 0:01:44]} 15. Nh4 $1 {[%emt 0:01:07]} b5 {[%emt 0:19:32]} ({Don't play} 15... Bxe4 $6 16. g5 $16) 16. Nxg6 {[%emt 0:01:26]} hxg6 {[%emt 0:00:07]} 17. Bd5 {[%emt 0:01:34]} b4 {[%emt 0:25:21]} 18. Bxc6 {[%emt 0:10:32]} Rxc6 {[%emt 0:01:32]} 19. Nd5 {[%emt 0:01:29]} Rxc1 {[%emt 0:00:43]} 20. Bxc1 {[%emt 0:00:49]} Nxd5 {[%emt 0:01:31]} 21. Rxd5 {[%emt 0:00:17]} Qc7 {[%emt 0:00:29]} 22. Be3 {[%emt 0:01:02]} Qb7 {[%emt 0:00:13]} 23. Qc4 {[%emt 0:07:51]} Rc8 {[%emt 0:03:06]} 24. Qb3 {[%emt 0:00:35]} Rb8 {[%emt 0:06:18]} 25. f3 {[%emt 0:03:15]} Qc6 {[%emt 0:03:35]} 26. a4 {[%emt 0:10:24]} Bd8 {[%emt 0:05:57]} 27. Kg2 {[%emt 0:05:19]} Bb6 {[%emt 0:02:43]} 28. Bg5 {[%emt 0:03:51]} Bd4 {[%emt 0:00:53]} 29. h4 {[%emt 0:04:07]} Rc8 {[%emt 0:04:44]} 30. Kh3 {[%emt 0:06:32]} Qc2 {[%emt 0:01:15]} 31. Qxc2 {[%emt 0:00:54]} Rxc2 {[%emt 0:00:01]} 32. Rxd6 {[%emt 0:00:14]} f6 {[%emt 0:00:05]} 33. Bxf6 $19 {[%emt 0:00:18]} gxf6 {[%emt 0:00:01]} 34. Rxf6 {[%emt 0:00:11]} Kg7 {[%emt 0:00:09]} 35. Rxa6 {[%emt 0:00:18]} Rxb2 {[%emt 0:00:06]} 36. h5 {[%emt 0:00:30]} gxh5 {[%emt 0:00:07]} 37. gxh5 {[%emt 0:00:20]} Rf2 {[%emt 0:00:49]} 38. Kg4 {[%emt 0:01:54]} b3 {[%emt 0:00:14]} 0-1

[Event "FIDE WCCC U10 2018"]
[Site "Santiago de Compostela"]
[Date "2018.11.09"]
[Round "5"]
[White "Cherniaiev, Tykhon"]
[Black "Pham, Tran Gia Phuc"]
[Result "1-0"]
[ECO "B32"]
[WhiteElo "1940"]
[BlackElo "1736"]
[Annotator "NA RC"]
[PlyCount "101"]
[EventDate "2018.11.04"]
[EventType "swiss"]
[EventCountry "ESP"]
[SourceTitle "playchess.com"]
[Source "ChessBase"]
[SourceQuality "1"]
[TimeControl "40/5400+30:1800+30"]

{[%evp 12,101,42,31,40,24,32767,28,32767,29,30,25,34,0,0,0,32767,-14,-7,32767,-14,-4,-11,-14,32767,32767,32767,32767,0,32767,32767,0,10,12,7,32767,10,32767,32767,15,77,32767,32767,32767,32767,66,32767,32767,80,71,32767,32767,110,32767,139,32767,32767,32767,32767,183,186,206,32767,32767,197,225,242,296,262,275,300,32767,32767,445,32767,417,502,496,479,32767,472,542,533,638,624,677,756,885,1666,1909,1263,1858]} 1. e4 c5 2. Nf3 Nc6 3. d4 cxd4 4. Nxd4 Qb6 5. Nb3 Nf6 6. Bd3 e6 7. O-O Be7 8. Nc3 a6 9. Qe2 {LiveBook: 9 Games B33: Sicilian: Pelikan and Sveshnikov Variations} d6 10. Be3 (10. Kh1 Qc7 11. Bd2 O-O 12. f4 b5 13. a4 b4 14. Nd1 Bb7 15. Nf2 Rfe8 16. Rae1 Bf8 17. Nh3 g6 18. Ng5 Bg7 19. Qf2 Re7 20. Qh4 h6 {½-½ (60) Kokarev,D (2618)-Inarkiev,E (2689) Moscow 2012}) 10... Qc7 11. Rad1 O-O 12. Kh1 $146 ({Predecessor:} 12. f3 b5 13. Qf2 Bb7 14. Rfe1 Rac8 15. Ne2 Nd7 {0-1 (39) Marszk,K (2102)-Marszalek,M (2355) Gdansk 2008}) 12... b5 13. f4 Bb7 14. Bg1 Rac8 15. Rf3 Nb4 16. a3 Nxd3 17. cxd3 e5 18. d4 Qc4 19. Qxc4 bxc4 20. Nd2 exd4 21. Bxd4 d5 22. Bxf6 Bxf6 23. exd5 Bxc3 24. Rxc3 Bxd5 25. Nf1 Be4 (25... Be6 $11) 26. Ne3 Bd3 27. b3 Be2 28. Rdc1 Rfe8 29. Nxc4 Rcd8 30. Re3 Rxe3 31. Nxe3 g6 32. Kg1 Rd2 33. Rc2 Rxc2 34. Nxc2 Bb5 35. Kf2 Kf8 36. Ke3 Ke7 37. Kd4 Kd6 38. Ne3 Bc6 39. g3 f6 40. Nc4+ Kc7 41. Kc5 Bd7 42. Ne3 Kb7 43. Nd5 f5 44. b4 Bc6 45. Kd6 Bb5 46. Nc3 Bc6 47. Ke7 Kc7 48. Kf6 Be8 49. Kg7 h5 50. Nd5+ Kd6 51. Nf6 $18 {Kd5} 1-0

[Event "FIDE WCCC U10 2018"]
[Site "Santiago de Compostela"]
[Date "2018.11.09"]
[Round "5"]
[White "Jin Yueheng"]
[Black "Xiao, Tong"]
[Result "1/2-1/2"]
[ECO "B14"]
[WhiteElo "1914"]
[BlackElo "2022"]
[Annotator "NA RC"]
[PlyCount "87"]
[EventDate "2018.11.04"]
[EventType "swiss"]
[EventCountry "ESP"]
[SourceTitle "playchess.com"]
[Source "ChessBase"]
[SourceQuality "1"]
[TimeControl "40/5400+30:1800+30"]

{[%evp 8,87,33,32767,32767,32767,32767,32767,32767,32767,32767,32767,32767,-38,32767,-46,-10,-27,-42,-47,-60,-57,5,0,0,2,0,0,6,-20,-20,-40,-43,-54,-45,-41,-47,32767,-35,-34,-27,-31,-27,-26,-24,32767,32767,32767,32767,32767,-4,32767,32767,32767,32767,-98,32767,32767,32767,32767,32767,32767,32767,32767,0,32767,0,0,32767,32767,0,0,0,32767,0,0,32767,32767,32767,32767,32767,0]} 1. d4 {[%emt 0:00:00]} Nf6 {[%emt 0:00:00]} 2. c4 {[%emt 0:00:00]} c5 {[%emt 0:00:00]} 3. e3 {[%emt 0:00:11]} cxd4 {[%emt 0:00:10]} 4. exd4 {[%emt 0:00:03]} d5 {[%emt 0:00:20]} 5. Nc3 {[%emt 0:00:10]} g6 {[%emt 0:00:27]} 6. Nf3 {[%emt 0:01:11]} Bg7 {[%emt 0:00:28]} 7. h3 {[%emt 0:00:17]} O-O {[%emt 0:00:15]} 8. cxd5 {[%emt 0:01:49]} Nxd5 {[%emt 0:02:55]} 9. Be2 {[%emt 0:00:16]} Nc6 {[%emt 0:00:26]} 10. O-O {[%emt 0:01:01]} Bf5 {[%emt 0:03:33]} 11. Be3 {[%emt 0:13:39] LiveBook: 15 Games} Qd7 {[%emt 0:04:36]} 12. Nxd5 {[%emt 0:04:11]} Qxd5 {[%emt 0:00:37]} 13. Qd2 {[%emt 0:01:42] B04: Alekhine's Defence: 4 Nf3} Rad8 $146 {[%emt 0:02:27]} ({Predecessor:} 13... Rac8 14. b3 Be4 15. Rfd1 Qa5 16. Qxa5 Nxa5 17. Nd2 Bd5 18. Rac1 Rxc1 19. Rxc1 Nc6 20. Bf3 Bxf3 21. Nxf3 {0-1 (43) Amini,H (1995)-Khusenkhojaev,M (2455) Ashkhabad 2017}) 14. Rfd1 {[%emt 0:00:33]} e5 {[%emt 0:03:10]} 15. dxe5 {[%emt 0:00:15]} Qxd2 {[%emt 0:01:04]} 16. Rxd2 {[%emt 0:03:06]} Rxd2 {[%emt 0:01:34]} 17. Nxd2 {[%emt 0:04:05]} Nxe5 {[%emt 0:00:53]} 18. Bd4 {[%emt 0:01:29]} Rd8 {[%emt 0:00:33]} 19. Bc3 {[%emt 0:09:26]} Nc6 {[%emt 0:08:37]} 20. Nb3 {[%emt 0:01:00]} Bxc3 {[%emt 0:00:42]} 21. bxc3 {[%emt 0:00:20]} b6 {[%emt 0:01:34]} 22. Kf1 {[%emt 0:02:32]} Kg7 {[%emt 0:01:30]} 23. Ke1 {[%emt 0:01:38]} h5 {[%emt 0:00:51]} 24. h4 {[%emt 0:00:26]} Kf6 {[%emt 0:01:42]} 25. Rd1 {[%emt 0:03:10]} Rxd1+ 26. Kxd1 {[%emt 0:01:08]} Ne5 {[%emt 0:01:59]} 27. Kd2 {[%emt 0:01:50]} Be4 {[%emt 0:01:01]} 28. g3 {[%emt 0:00:15]} Bd5 {[%emt 0:02:25]} 29. Nc1 {[%emt 0:01:32]} Ke6 {[%emt 0:00:47]} 30. a3 {[%emt 0:01:47]} Nc4+ {[%emt 0:00:40]} 31. Bxc4 {[%emt 0:00:05]} Bxc4 {[%emt 0:00:05]} 32. Nd3 {[%emt 0:01:05]} Bxd3 {[%emt 0:00:07]} 33. Kxd3 {[%emt 0:00:04]} Kd5 {[%emt 0:00:30]} 34. c4+ {[%emt 0:00:16]} Kc5 {[%emt 0:01:05]} 35. f3 {[%emt 0:06:17] [#]} f6 $2 {[%emt 0:01:01]} (35... b5 $1 $19 {[%cal Rb5c4]} 36. cxb5 Kxb5) 36. g4 {[%emt 0:05:34]} f5 {[%emt 0:05:38]} 37. g5 {[%emt 0:04:28]} a6 {[%emt 0:01:18]} 38. Kc3 {[%emt 0:02:20]} b5 {[%emt 0:02:56]} 39. cxb5 {[%emt 0:00:03]} axb5 {[%emt 0:00:03]} 40. f4 {[%emt 0:00:00]} Kc6 {[%emt 0:00:00]} 41. Kc2 {[%emt 0:04:51]} Kc5 {[%emt 0:01:43]} 42. Kc3 {[%emt 0:00:07]} Kc6 {[%emt 0:00:12]} 43. Kc2 {[%emt 0:00:12]} Kc5 {[%emt 0:00:04]} 44. Kc3 $11 {[%emt 0:00:40]} 1/2-1/2